bitfinex/quotes_SOLUSD_20250922
["timestamp","ask_amount","ask_price","bid_price","bid_amount"]
[1758534342457,39.23,221.35,221.26,13.59559401]
[1758534343176,39.23,221.35,221.28,13.59559401]
[1758534343358,43.74776145,221.35,221.28,13.59559401]
[1758534343679,5.22776145,221.35,221.28,13.59559401]
[1758534343872,43.76776145,221.35,221.28,13.59559401]
[1758534344963,0.71,221.34,221.22,38.54]
[1758534345156,0.71,221.33,221.23,13.59559401]
[1758534345362,0.71,221.32,221.23,13.59559401]
[1758534345562,39.21,221.31,221.23,13.59559401]
[1758534345764,38.5,221.31,221.23,13.59559401]
[1758534345968,26.71,221.38,221.23,13.59559401]
[1758534346163,39.21,221.37,221.27,13.59559401]
[1758534347186,39.17,221.37,221.29,13.59559401]
[1758534347371,38.46,221.37,221.29,13.59559401]
[1758534348592,69.64714792,221.38,221.31,13.59559401]
[1758534349180,0.71,221.37,221.31,13.59559401]
[1758534350484,0.71,221.37,221.32,4.51834447]
[1758534351397,0.71,221.36,221.32,17.9023802]
[1758534351820,0.71,221.38,221.32,17.9023802]
[1758534352302,0.71,221.37,221.33,13.59559401]
[1758534352479,0.71,221.37,221.33,18.11363492]
[1758534352985,0.71,221.39,221.33,18.11363492]
[1758534353186,0.71,221.39,221.33,13.59559401]
[1758534353384,0.71,221.39,221.33,18.113644]
[1758534354441,0.71,221.39,221.33,21.32337489]
[1758534357327,0.67,221.41,221.36,13.59559401]
[1758534357707,0.67,221.41,221.38,13.59559401]
[1758534357909,0.67,221.41,221.33,15.81340082]
[1758534358108,0.67,221.41,221.36,3.20973089]
[1758534358639,0.67,221.41,221.38,13.59559401]
[1758534358802,0.67,221.41,221.36,4.51751198]
[1758534359006,0.67,221.43,221.37,13.59559401]
[1758534359934,42.59590284,221.44,221.37,13.59559401]
[1758534360124,0.67,221.42,221.37,13.59559401]
[1758534360441,0.67,221.41,221.37,13.59559401]
[1758534360643,0.67,221.4,221.36,13.59559401]
[1758534361140,0.67,221.39,221.33,13.59559401]
[1758534361312,0.67,221.38,221.33,13.59559401]
[1758534361512,0.67,221.37,221.32,13.59559401]
[1758534361715,0.67,221.36,221.32,26.93891991]
[1758534363214,5.18708379,221.39,221.32,31.45723875]
[1758534363413,0.67,221.38,221.32,31.45723875]
[1758534363627,0.67,221.38,221.32,31.45717958]
[1758534364615,22.57664748,221.47,221.32,31.45717958]
[1758534364616,11.29021008,221.44,221.32,33.51084447]
[1758534364821,0.67,221.43,221.35,2.05366489]
[1758534365039,0.67,221.43,221.38,13.59559401]
[1758534365218,0.67,221.43,221.38,85.79559401]
[1758534365931,0.67,221.43,221.38,90.31252252]
[1758534366531,0.67,221.42,221.38,85.79559401]
[1758534366831,0.67,221.41,221.38,85.79559401]
[1758534367016,4.5159325,221.44,221.38,85.79559401]
[1758534367017,0.67,221.43,221.38,85.79559401]
[1758534367218,0.67,221.42,221.38,85.79559401]
[1758534368035,0.67,221.42,221.38,90.31268067]
[1758534369032,37.28860003,221.47,221.38,90.31268067]
[1758534369033,5.18591383,221.44,221.38,90.31268067]
[1758534370142,0.67,221.44,221.38,90.31268067]
[1758534370719,42.35578312,221.45,221.38,85.79559401]
[1758534371022,0.67,221.44,221.38,85.79559401]
[1758534371235,0.67,221.43,221.38,85.79559401]
[1758534371434,0.67,221.42,221.38,85.79559401]
[1758534371649,53.62501319,221.45,221.38,90.31263076]
[1758534371650,5.18578312,221.45,221.38,90.31263076]
[1758534372024,42.96578312,221.45,221.38,90.31263076]
[1758534372846,0.7,221.44,221.38,90.31263076]
[1758534374832,5.21589832,221.44,221.38,90.31263076]
[1758534375135,4.51539231,221.47,221.38,101.60543047]
[1758534375445,38.4,221.46,221.38,101.60543047]
[1758534375638,42.91569065,221.46,221.38,101.60543047]
[1758534375834,42.21569065,221.46,221.38,101.60543047]
[1758534376039,0.7,221.45,221.38,101.60543047]
[1758534376750,5.21575908,221.45,221.38,90.31263076]
[1758534377634,0.7,221.45,221.38,90.31263076]
[1758534377942,30.51551699,221.46,221.38,101.60543047]
[1758534378251,37.72,221.48,221.38,101.60543047]
[1758534378552,0.1,221.48,221.4,13.59559401]
[1758534379053,4.61519936,221.48,221.42,13.59559401]
[1758534380045,0.1,221.48,221.43,13.59559401]
[1758534380254,0.1,221.48,221.43,85.79559401]
[1758534380754,0.1,221.48,221.43,123.35559401]
[1758534382232,0.1,221.48,221.45,13.59559401]
[1758534384144,0.1,221.48,221.44,13.59559401]
[1758534384352,0.1,221.48,221.44,18.1114605]
[1758534386559,0.1,221.48,221.42,72.2]
[1758534386560,0.7,221.47,221.42,72.2]
[1758534386759,0.7,221.46,221.42,72.2]
[1758534386935,0.7,221.45,221.42,72.2]
[1758534387250,4.61516407,221.48,221.42,72.2]
[1758534387460,0.68,221.47,221.42,72.2]
[1758534387660,4.61516407,221.48,221.42,72.2]
[1758534387661,0.68,221.46,221.42,72.2]
[1758534387861,0.68,221.45,221.43,13.59559401]
[1758534388254,0.68,221.44,221.39,13.59559401]
[1758534388458,0.68,221.44,221.39,4.51683425]
[1758534388638,0.68,221.44,221.38,13.59559401]
[1758534388841,0.68,221.43,221.36,72.2]
[1758534389143,0.68,221.42,221.35,13.59559401]
[1758534389345,0.68,221.41,221.35,13.59559401]
[1758534389649,0.68,221.4,221.33,13.59559401]
[1758534389849,0.68,221.39,221.33,13.59559401]
[1758534390767,0.68,221.39,221.35,13.59559401]
[1758534391353,5.19700835,221.39,221.35,13.59559401]
[1758534391554,5.19700835,221.39,221.33,13.59559401]
[1758534391555,0.68,221.38,221.33,13.59559401]
[1758534391743,0.68,221.37,221.33,13.59559401]
[1758534391950,4.51700835,221.39,221.33,13.59559401]
[1758534391951,0.68,221.36,221.33,13.59559401]
[1758534393865,26.68,221.39,221.33,13.59559401]
[1758534394183,0.68,221.38,221.33,13.59559401]
[1758534394348,0.68,221.37,221.33,13.59559401]
[1758534395373,5.19732854,221.37,221.33,13.59559401]
[1758534395946,5.19732854,221.37,221.3,13.59559401]
[1758534396671,5.19732854,221.37,221.3,27.30111894]
[1758534396875,5.19732854,221.37,221.32,13.59559401]
[1758534397049,0.68,221.36,221.32,13.59559401]
[1758534397472,4.51732854,221.37,221.32,13.59559401]
[1758534397670,0.68,221.36,221.32,13.59559401]
[1758534398370,5.19757765,221.36,221.32,13.59559401]
[1758534399058,4.51757765,221.36,221.32,13.59559401]
[1758534400389,4.51711988,221.38,221.32,4.51828277]
[1758534400753,5.19711988,221.38,221.32,4.51828277]
[1758534401876,0.68,221.37,221.31,13.59559401]
[1758534402781,0.68,221.37,221.31,85.79559401]
[1758534403477,4.517528,221.36,221.31,85.79559401]
[1758534403672,5.197528,221.36,221.31,85.79559401]
[1758534404168,0.68,221.36,221.31,85.79559401]
[1758534404571,4.51734632,221.37,221.31,85.79559401]
[1758534404878,0.68,221.35,221.31,85.79559401]
[1758534405060,15.81065616,221.37,221.31,85.79559401]
[1758534405260,0.68,221.34,221.31,85.79559401]
[1758534405475,5.19803071,221.34,221.31,85.79559401]
[1758534405982,0.68,221.33,221.31,85.79559401]
[1758534406688,4.51803071,221.34,221.31,85.79559401]
[1758534407065,0.68,221.33,221.31,85.79559401]
[1758534407281,4.51803071,221.34,221.31,85.79559401]
[1758534407282,0.68,221.32,221.31,85.79559401]
[1758534407587,0.68,221.32,221.31,13.59559401]
[1758534407784,0.68,221.32,221.25,13.59559401]
[1758534407979,37.06,221.33,221.22,85.78911059]
[1758534407980,26.0,221.3,221.22,85.78911059]
[1758534408287,0.68,221.29,221.21,72.2]
[1758534408475,0.68,221.28,221.21,72.2]
[1758534408676,37.76,221.27,221.22,13.59559401]
[1758534408872,0.68,221.26,221.17,85.77778934]
[1758534409174,0.68,221.25,221.17,72.2]
[1758534409382,37.74,221.24,221.17,72.2]
[1758534409569,5.20018261,221.23,221.17,72.2]
[1758534409786,0.68,221.22,221.18,13.59559401]
[1758534410394,0.68,221.21,221.18,13.59559401]
[1758534410578,0.68,221.2,221.15,13.59559401]
[1758534410972,0.68,221.2,221.12,18.11802526]
[1758534411688,0.68,221.2,221.12,90.31802526]
[1758534412085,0.68,221.2,221.12,101.6241034]
[1758534412291,5.20079863,221.2,221.12,101.6241034]
[1758534412469,0.68,221.2,221.12,101.6241034]
[1758534414393,5.20080132,221.2,221.12,90.31802526]
[1758534415296,0.68,221.25,221.19,13.59559401]
[1758534415476,36.96,221.24,221.19,13.59559401]
[1758534415797,0.68,221.23,221.17,13.59559401]
[1758534415982,0.68,221.23,221.16,13.59559401]
[1758534416784,0.68,221.23,221.17,4.52140887]
[1758534417183,0.68,221.23,221.13,109.16]
[1758534417184,26.0,221.21,221.13,72.2]
[1758534417385,0.7,221.2,221.11,13.59559401]
[1758534417675,0.7,221.19,221.11,13.59559401]
[1758534417876,26.0,221.15,221.04,4.52406804]
[1758534418090,0.7,221.14,221.03,37.06]
[1758534418398,0.7,221.13,221.01,4.52454435]
[1758534418589,37.82,221.12,221.02,13.59559401]
[1758534418899,4.52284034,221.1,221.02,18.11996556]
[1758534419085,5.22284034,221.1,221.02,18.11996556]
[1758534420190,68.32285827,221.1,221.02,18.11996556]
[1758534420397,0.7,221.09,221.02,18.11996556]
[1758534421089,0.7,221.09,221.0,4.52474255]
[1758534421288,0.7,221.08,221.01,13.59559401]
[1758534421981,37.06,221.09,221.01,16.81527153]
[1758534422192,4.5232495,221.08,221.02,4.52447742]
[1758534422485,0.7,221.07,220.98,13.79559401]
[1758534422697,0.7,221.06,220.98,0.2]
[1758534423090,63.06,221.05,220.98,0.2]
[1758534423285,0.7,221.04,220.98,0.2]
[1758534423592,37.06,221.03,220.98,0.2]
[1758534423784,37.74,221.03,220.98,0.2]
[1758534423983,37.04,221.03,220.99,13.59559401]
[1758534424180,37.74,221.03,220.99,13.59559401]
[1758534424395,37.04,221.03,220.99,4.5250831]
[1758534424605,0.7,221.09,221.0,16.81527153]
[1758534424908,37.06,221.08,221.04,13.59559401]
[1758534425106,63.06,221.09,221.0,13.59559401]
[1758534425306,0.7,221.07,221.0,16.81527153]
[1758534425909,37.04,221.08,221.02,3.21967752]
[1758534426091,41.56327398,221.08,221.02,18.1200378]
[1758534426291,0.7,221.09,221.02,18.1200378]
[1758534426505,37.04,221.08,221.02,21.33971532]
[1758534427209,0.7,221.07,221.0,13.59559401]
[1758534427416,37.04,221.08,220.98,13.79559401]
[1758534427417,0.7,221.06,220.98,13.79559401]
[1758534427593,0.7,221.05,220.98,13.79559401]
[1758534427788,0.7,221.04,220.98,13.79559401]
[1758534427989,37.74,221.04,220.98,0.2]
[1758534428188,42.26426086,221.04,220.98,0.2]
[1758534428408,37.74,221.04,220.98,0.2]
[1758534428589,37.02,221.03,220.98,0.2]
[1758534428991,0.7,221.02,220.98,0.2]
[1758534429190,37.7,221.02,220.98,0.2]
[1758534429399,37.0,221.02,220.98,0.2]
[1758534429602,0.7,221.01,220.98,0.2]
[1758534429806,0.7,221.0,220.98,0.2]
[1758534430116,0.7,220.99,220.98,0.2]
[1758534432220,5.22509163,220.99,220.98,0.2]
[1758534432938,5.22509163,220.99,220.88,13.61007145]
[1758534432939,26.0,220.96,220.86,0.2]
[1758534433099,37.66,220.95,220.86,0.2]
[1758534433301,37.66,220.95,220.86,13.59559401]
[1758534433519,0.7,220.94,220.86,13.79559401]
[1758534434242,36.96,220.95,220.85,3.21967752]
[1758534434243,0.7,220.93,220.88,13.59559401]
[1758534434445,0.7,220.92,220.85,13.59559401]
[1758534435235,0.7,220.91,220.85,13.59559401]
[1758534436335,0.7,220.91,220.87,13.59559401]
[1758534436522,0.7,220.9,220.87,13.59559401]
[1758534438148,0.7,220.94,220.89,13.59559401]
[1758534438454,36.92,220.92,220.89,13.59559401]
[1758534438639,0.7,220.91,220.87,13.59559401]
[1758534439038,36.88,220.91,220.87,13.59559401]
[1758534439238,37.58,220.91,220.87,13.59559401]
[1758534439453,36.88,220.91,220.87,13.59559401]
[1758534439746,37.58,220.91,220.87,13.59559401]
[1758534439946,0.7,220.9,220.87,13.59559401]
[1758534440131,0.7,220.89,220.85,13.59559401]
[1758534440833,0.7,220.88,220.85,13.59559401]
[1758534441451,0.7,220.9,220.85,13.59559401]
[1758534441651,0.7,220.89,220.85,13.59559401]
[1758534441852,0.7,220.89,220.82,11.32109176]
[1758534441853,0.7,220.89,220.83,13.59559401]
[1758534442055,0.7,220.91,220.85,13.59559401]
[1758534442233,36.84,220.9,220.85,13.59559401]
[1758534442435,37.54,220.9,220.85,13.59559401]
[1758534442867,36.82,220.9,220.85,13.79559401]
[1758534443076,0.7,220.96,220.89,13.59559401]
[1758534443241,31.2,220.95,220.89,13.59559401]
[1758534443440,31.9,220.95,220.89,13.59559401]
[1758534443629,31.9,220.95,220.88,13.79559401]
[1758534443835,31.9,220.95,220.89,4.5271402]
[1758534444031,0.7,220.95,220.89,4.5271402]
[1758534444250,37.5,220.95,220.89,4.5271402]
[1758534444851,42.02599448,220.95,220.89,4.5271402]
[1758534445056,0.7,220.94,220.89,4.5271402]
[1758534445233,0.7,220.94,220.88,13.59559401]
[1758534445234,41.32599448,220.95,220.88,13.59559401]
[1758534445435,37.5,220.95,220.88,13.59559401]
[1758534445642,0.7,220.95,220.88,13.59559401]
[1758534445839,37.48,220.95,220.88,13.59559401]
[1758534446040,0.7,220.99,220.9,13.59559401]
[1758534446242,0.7,220.99,220.92,13.59559401]
[1758534446243,36.76,220.98,220.92,13.59559401]
[1758534446466,37.46,220.97,220.91,13.59559401]
[1758534446638,0.7,220.96,220.91,13.59559401]
[1758534446838,0.7,220.95,220.9,13.59559401]
[1758534447653,37.48,220.97,220.91,4.52673034]
[1758534447848,37.46,220.97,220.92,13.59559401]
[1758534448067,0.72,220.96,220.91,4.52673034]
[1758534448240,0.72,220.95,220.91,4.52673034]
[1758534448663,36.74,220.97,220.91,4.52673034]
[1758534449354,0.72,220.96,220.91,4.52673034]
[1758534449741,36.74,220.97,220.91,4.52673034]
[1758534450060,11.31184438,221.01,220.92,17.01527153]
[1758534450061,26.72,221.01,220.92,17.01527153]
[1758534450362,36.74,220.99,220.92,17.01527153]
[1758534451146,36.74,220.99,220.84,50.33559401]
[1758534451147,0.72,220.99,220.84,13.59559401]
[1758534451345,0.72,220.98,220.89,13.79559401]
[1758534451546,0.72,220.97,220.89,13.79559401]
[1758534452071,0.72,220.97,220.9,3.21967752]
[1758534452276,0.72,220.98,220.9,17.01527153]
[1758534452574,0.72,220.98,220.9,13.79559401]
[1758534452864,37.46,220.98,220.9,13.79559401]
[1758534453477,26.0,221.02,220.93,13.59559401]
[1758534453647,11.30924396,221.06,220.93,13.59559401]
[1758534453648,36.74,220.99,220.93,13.59559401]
[1758534453846,0.72,221.0,220.95,13.59559401]
[1758534454368,36.74,221.02,220.95,13.79559401]
[1758534454548,37.46,221.02,220.95,13.79559401]
[1758534455451,37.46,221.02,220.97,13.59559401]
[1758534455748,0.72,221.01,220.97,13.59559401]
[1758534455948,0.72,221.0,220.97,13.59559401]
[1758534457043,0.72,220.99,220.94,13.59559401]
[1758534457249,0.72,220.98,220.94,13.59559401]
[1758534457450,0.72,220.97,220.94,18.12151473]
[1758534457667,0.72,220.97,220.94,4.52592072]
[1758534457844,0.72,220.99,220.95,13.59559401]
[1758534458050,0.72,220.98,220.95,13.59559401]
[1758534458245,0.72,221.01,220.96,13.59559401]
[1758534458858,0.72,221.04,220.97,0.2]
[1758534459068,0.72,221.04,220.95,16.81527153]
[1758534459069,37.46,221.04,220.95,16.81527153]
[1758534459271,0.72,221.03,220.95,13.59559401]
[1758534459580,0.72,221.02,220.96,13.59559401]
[1758534459757,4.52427599,221.03,220.96,13.59559401]
[1758534460066,0.72,221.02,220.96,13.59559401]
[1758534461174,0.72,221.04,220.96,17.01527153]
[1758534461495,37.46,221.04,220.96,17.01527153]
[1758534461652,37.46,221.04,220.98,13.59559401]
[1758534462370,0.72,221.03,220.98,13.59559401]
[1758534462562,26.0,221.01,220.92,13.59559401]
[1758534462750,26.0,221.01,220.92,32.65811055]
[1758534462950,0.72,221.0,220.92,32.65811055]
[1758534463175,0.72,221.0,220.92,104.85811055]
[1758534463470,0.72,221.0,220.94,13.59559401]
[1758534463674,0.72,221.0,220.96,13.59559401]
[1758534464171,0.72,221.0,220.94,13.59559401]
[1758534464172,0.72,220.99,220.94,13.59559401]
[1758534464349,0.72,220.98,220.94,13.59559401]
[1758534464544,0.72,220.97,220.94,13.59559401]
[1758534464771,36.74,220.99,220.94,13.59559401]
[1758534464983,0.72,220.97,220.94,13.59559401]
[1758534465170,0.72,220.97,220.94,4.52600063]
[1758534465370,36.74,220.99,220.94,4.52600063]
[1758534465854,0.72,220.98,220.94,4.52600063]
[1758534466275,0.72,220.98,220.94,13.59559401]
[1758534467466,36.74,220.99,220.94,13.59559401]
[1758534467655,37.46,220.99,220.94,13.59559401]
[1758534468064,0.72,220.98,220.89,0.2]
[1758534468380,36.72,220.97,220.91,13.59559401]
[1758534468551,36.72,220.97,220.93,13.59559401]
[1758534468748,0.72,220.96,220.93,13.59559401]
[1758534469475,36.72,220.97,220.93,13.59559401]
[1758534469670,37.44,220.97,220.93,13.59559401]
[1758534469848,0.72,221.0,220.93,16.81527153]
[1758534470055,0.72,221.0,220.93,17.01527153]
[1758534470255,37.44,221.02,220.95,13.59559401]
[1758534470864,0.72,221.01,220.95,13.59559401]
[1758534471564,37.44,221.03,220.95,17.01527153]
[1758534471877,0.72,221.02,220.95,17.01527153]
[1758534472754,0.72,221.02,220.97,13.59559401]
[1758534473155,0.72,221.01,220.97,13.59559401]
[1758534473969,26.72,221.05,220.98,0.2]
[1758534474170,0.72,221.05,220.99,13.59559401]
[1758534474573,0.72,221.05,220.98,0.2]
[1758534474876,0.72,221.04,220.97,13.59559401]
[1758534475069,0.72,221.03,220.97,13.59559401]
[1758534476183,0.72,221.03,220.97,16.81527153]
[1758534476378,0.72,221.03,220.99,13.59559401]
[1758534477276,0.72,221.03,220.95,11.51465734]
[1758534477277,0.66,221.02,220.95,17.01527153]
[1758534477983,0.66,221.02,220.95,21.54098277]
[1758534478698,0.66,221.04,220.97,3.21967752]
[1758534479065,0.66,221.04,220.98,13.59559401]
[1758534479293,0.66,221.04,220.98,13.79559401]
[1758534479498,0.66,221.04,220.98,13.59559401]
[1758534479701,0.66,221.04,220.98,85.79559401]
[1758534479905,0.66,221.04,220.99,13.59559401]
[1758534480201,0.66,221.04,220.99,85.79559401]
[1758534480390,36.72,221.06,221.0,0.2]
[1758534480598,36.72,221.06,221.01,13.59559401]
[1758534480795,0.66,221.05,221.01,13.59559401]
[1758534481902,0.66,221.09,221.03,13.59559401]
[1758534482198,0.66,221.08,221.03,13.59559401]
[1758534482502,0.66,221.07,221.03,13.59559401]
[1758534483282,0.66,221.07,221.02,13.59559401]
[1758534483897,41.24284406,221.1,221.03,4.72427272]
[1758534484199,0.66,221.09,221.03,4.52427272]
[1758534484990,4.5232495,221.08,221.03,4.52427272]
[1758534485185,5.1832495,221.08,221.02,18.12004527]
[1758534485889,5.1832495,221.08,220.59,12.35534149]
[1758534485890,26.0,221.05,220.86,31.70775513]
[1758534486108,26.0,221.01,220.87,0.72]
[1758534486613,0.66,221.0,220.87,0.72]
[1758534486983,26.0,220.97,220.87,0.72]
[1758534487223,26.0,220.95,220.87,0.72]
[1758534487715,26.0,220.95,220.85,4.52789717]
[1758534487716,0.66,220.94,220.84,0.72]
[1758534487914,0.66,220.94,220.85,13.59559401]
[1758534488225,0.66,220.94,220.84,0.72]
[1758534488226,26.66,220.95,220.87,13.59559401]
[1758534488385,4.52509163,220.99,220.89,13.59559401]
[1758534488590,26.0,220.95,220.9,0.72]
[1758534489113,26.0,220.95,220.89,13.59559401]
[1758534489114,26.0,220.95,220.92,13.59559401]
[1758534489409,26.0,220.95,220.86,4.5276756]
[1758534489410,26.0,220.95,220.91,14.31559401]
[1758534489712,26.0,220.95,220.92,0.72]
[1758534490407,26.0,220.95,220.93,13.59559401]
[1758534490710,30.52601912,220.95,220.93,13.59559401]
[1758534491026,22.60295636,221.22,220.95,13.59559401]
[1758534491027,4.5248589,221.01,220.95,13.59559401]
[1758534491322,4.5248589,221.01,220.97,13.59559401]
[1758534491520,26.66,221.0,220.91,13.59559401]
[1758534491686,26.0,221.0,220.95,13.59559401]
[1758534491886,26.0,221.0,220.97,13.59559401]
[1758534492088,26.0,221.01,220.97,13.59559401]
[1758534492510,37.28,221.04,220.99,13.59559401]
[1758534492719,63.28,221.04,221.0,0.7]
[1758534493018,4.52488687,221.0,220.92,0.7]
[1758534493202,0.7,221.0,220.92,2.76031308]
[1758534493708,0.7,221.0,220.94,13.59559401]
[1758534494212,26.0,221.01,220.94,13.59559401]
[1758534494213,26.0,221.01,220.95,0.7]
[1758534494912,26.0,221.01,220.97,13.59559401]
[1758534495233,13.59559401,221.11,220.99,13.59559401]
[1758534495422,0.7,221.06,220.99,13.59559401]
[1758534495729,0.7,221.06,221.01,13.59559401]
[1758534496035,26.7,221.05,220.96,14.29559401]
[1758534496334,26.0,221.05,221.0,13.59559401]
[1758534496624,26.0,221.07,221.02,13.59559401]
[1758534496825,0.7,221.09,221.04,13.59559401]
[1758534497017,26.0,221.07,221.04,13.59559401]
[1758534497210,26.0,221.06,221.01,0.7]
[1758534497805,30.52354583,221.07,221.01,0.7]
[1758534498528,26.0,221.07,221.02,15.65590709]
[1758534498828,4.52322466,221.09,221.03,0.7]
[1758534499127,63.22,221.1,221.03,0.7]
[1758534499425,63.22,221.1,221.04,13.59559401]
[1758534499630,0.7,221.14,221.07,13.59559401]
[1758534499925,4.52181777,221.15,221.07,13.59559401]
[1758534500127,26.0,221.12,221.05,13.59559401]
[1758534500319,26.0,221.12,221.07,13.59559401]
[1758534500516,26.0,221.12,221.07,0.7]
[1758534500719,26.0,221.12,218.01,60.61448088]
[1758534500720,26.0,221.12,220.96,11.3138149]
[1758534500910,0.7,221.11,221.01,15.65590709]
[1758534501109,0.7,221.11,221.03,13.59559401]
[1758534501312,26.7,221.1,221.03,13.59559401]
[1758534501827,26.7,221.1,221.03,13.09559401]
[1758534502218,26.0,221.08,220.95,18.12980815]
[1758534502411,0.7,221.07,220.97,0.7]
[1758534502743,1.13283355,221.06,220.91,5.22661648]
[1758534502903,26.0,221.02,220.92,2.76031308]
[1758534503109,0.7,221.01,220.92,2.06031308]
[1758534503309,4.52468214,221.01,220.93,2.76031308]
[1758534503509,5.22468214,221.01,220.93,0.7]
[1758534503728,5.22468214,221.01,220.93,2.76031308]
[1758534503928,5.22468214,221.01,220.94,13.59559401]
[1758534504440,26.0,220.98,220.94,13.59559401]
[1758534505436,26.0,220.98,220.88,2.06031308]
[1758534505610,0.7,220.97,220.9,13.59559401]
[1758534506238,26.7,220.96,220.87,14.29559401]
[1758534506408,26.7,220.95,220.87,13.59559401]
[1758534506618,26.7,220.95,220.84,5.22816518]
[1758534506619,0.7,220.94,220.85,13.59559401]
[1758534506815,0.7,220.93,220.85,13.59559401]
[1758534507020,0.7,220.93,220.84,13.59559401]
[1758534507211,0.7,220.93,220.85,0.66]
[1758534507533,0.7,220.93,220.85,2.72031308]
[1758534507720,0.68,220.92,220.86,13.59559401]
[1758534507914,0.68,220.91,220.83,13.59559401]
[1758534508117,26.0,220.92,220.85,13.59559401]
[1758534509339,4.52673034,220.91,220.85,13.59559401]
[1758534510833,4.52653761,220.92,220.85,13.59559401]
[1758534511035,0.68,220.91,220.85,13.59559401]
[1758534511939,3.71861502,220.91,220.83,13.59559401]
[1758534512437,4.52693526,220.9,220.83,13.59559401]
[1758534513639,26.0,220.87,220.83,13.59559401]
[1758534513943,26.0,220.87,220.85,13.59559401]
[1758534514121,26.0,220.91,220.86,14.25559401]
[1758534514443,26.0,220.9,220.87,13.59559401]
[1758534514646,26.0,220.9,220.86,13.59559401]
[1758534515218,0.68,220.9,220.84,0.66]
[1758534515446,30.52678704,220.91,220.84,0.66]
[1758534517133,26.0,220.89,220.84,0.66]
[1758534517723,26.0,220.89,220.82,20.18448005]
[1758534517928,26.0,220.89,220.83,0.66]
[1758534518437,26.0,220.88,220.83,77.38826794]
[1758534518640,26.0,220.88,220.84,0.66]
[1758534518842,5.20755014,220.87,220.78,13.59559401]
[1758534519027,0.68,220.86,220.78,13.59559401]
[1758534519831,0.68,220.86,220.78,0.66]
[1758534520438,4.52796015,220.85,220.77,13.79559401]
[1758534520767,0.68,220.84,220.77,13.79559401]
[1758534521064,0.68,220.84,220.78,0.66]
[1758534521346,0.68,220.84,220.77,13.79559401]
[1758534521842,0.68,220.84,220.78,0.66]
[1758534522244,4.52796015,220.85,220.78,0.66]
[1758534522426,4.5277594,220.86,220.78,5.18932987]
[1758534522627,0.68,220.92,220.82,15.65590709]
[1758534522840,0.68,220.92,220.84,13.59559401]
[1758534523063,0.68,220.92,220.86,13.59559401]
[1758534523222,0.68,220.91,220.86,13.59559401]
[1758534523423,0.68,220.9,220.84,13.59559401]
[1758534523729,4.52665656,220.92,220.86,13.59559401]
[1758534523952,30.52665656,220.92,220.86,13.59559401]
[1758534524862,30.52665656,220.92,220.86,0.66]
[1758534525374,26.0,220.92,220.86,0.66]
[1758534525671,26.0,220.92,220.86,5.18770394]
[1758534525855,26.0,220.92,220.88,13.59559401]
[1758534526057,0.68,220.91,220.88,13.59559401]
[1758534526253,0.68,220.9,220.83,13.59559401]
[1758534527051,5.20704974,220.9,220.83,13.59559401]
[1758534527245,0.68,220.9,220.83,13.59559401]
[1758534527565,0.68,220.9,220.82,14.25559401]
[1758534527734,0.68,220.9,220.83,0.66]
[1758534528440,26.0,220.91,220.85,13.59559401]
[1758534528739,26.0,220.91,220.86,0.66]
[1758534528943,26.68,220.91,220.85,13.59559401]
[1758534529163,31.20691948,220.91,220.85,13.59559401]
[1758534530957,0.68,220.91,220.85,13.59559401]
[1758534531262,5.20678487,220.91,220.85,13.59559401]
[1758534532567,5.20632055,220.93,220.87,13.59559401]
[1758534533268,26.0,220.94,220.89,13.59559401]